fUSD/lending_fUSD_20250811
["ID","MTS","AMOUNT","RATE_DAILY","PERIOD"]
[378494694,1754886693374,-400.0,0.00018643,2]
[378494695,1754886693384,-937.87,0.00018643,2]
[378494696,1754886693393,-400.0,0.00018643,2]
[378494697,1754886693403,-2511.12,0.00018643,2]
[378494698,1754886693413,-400.0,0.00018643,2]
[378494699,1754886693423,-1694.6,0.00018643,2]
[378494700,1754886693433,-460.0,0.00018643,2]
[378494701,1754886693442,-400.0,0.00018643,2]
[378494702,1754886693451,-471.5,0.00018643,2]
[378494703,1754886693461,-400.0,0.00018643,2]
[378494704,1754886693471,-400.0,0.00018643,2]
[378494705,1754886693481,-1957.86,0.00018643,2]
[378494706,1754886693491,-844.51,0.00018643,2]
[378494707,1754886693501,-3867.29,0.00018643,2]
[378494708,1754886693511,-420.28,0.00018643,2]
[378494709,1754886693521,-400.0,0.00018643,2]
[378494710,1754886693531,-1922.57,0.00018643,2]
[378494711,1754886693540,-2073.51,0.00018643,2]
[378494712,1754886693550,-2662.56,0.00018643,2]
[378494713,1754886693559,-400.0,0.00018643,2]
[378494714,1754886693568,-400.0,0.00018643,2]
[378494715,1754886693578,-649.45,0.00018643,2]
[378494716,1754886693591,-965.39,0.00018643,2]
[378494717,1754886693601,-2303.33,0.00018643,2]
[378494718,1754886693611,-1938.9,0.00018643,2]
[378494719,1754886693621,-4737.79,0.00018643,2]
[378494720,1754886693631,-443.09,0.00018643,2]
[378494721,1754886693641,-1611.6,0.00018643,2]
[378494722,1754886693650,-620.19,0.00018643,2]
[378494723,1754886693660,-494.05,0.00018643,2]
[378494724,1754886693671,-400.0,0.00018643,2]
[378494725,1754886693681,-3411.58,0.00018643,2]
[378494726,1754886693691,-1364.24,0.00018643,2]
[378494727,1754886693701,-400.0,0.00018643,2]
[378494728,1754886693710,-400.0,0.00018643,2]
[378494729,1754886693720,-400.0,0.00018643,2]
[378494730,1754886693730,-928.56,0.00018643,2]
[378494731,1754886693743,-734.37,0.00018643,2]
[378494732,1754886693753,-1639.26,0.00018643,2]
[378494733,1754886693762,-453.0,0.00018643,2]
[378494734,1754886693772,-400.0,0.00018643,2]
[378494735,1754886693781,-964.97,0.00018643,2]
[378494736,1754886693791,-400.0,0.00018643,2]
[378494737,1754886694172,-2514.27,0.00018643,2]
[378494738,1754886694195,-400.0,0.00018643,2]
[378494739,1754886694206,-426.85,0.00018643,2]
[378494740,1754886694216,-1646.59,0.00018643,2]
[378494741,1754886694226,-566.96,0.00018643,2]
[378494742,1754886694236,-489.19,0.00018643,2]
[378494743,1754886694246,-990.1,0.00018643,2]
[378494744,1754886694256,-4613.12,0.00018643,2]
[378494745,1754886694265,-1627.5,0.00018643,2]
[378494746,1754886694275,-1052.13,0.00018643,2]
[378494747,1754886694285,-1864.85,0.00018643,2]
[378494748,1754886694294,-1421.55,0.00018643,2]
[378494749,1754886694304,-400.0,0.00018643,2]
[378494750,1754886694314,-667.49,0.00018643,2]
[378494751,1754886694324,-2035.68,0.00018643,2]
[378494752,1754886694334,-400.0,0.00018643,2]
[378494753,1754886694344,-963.99,0.00018643,2]
[378494754,1754886694354,-2455.42,0.00018643,2]
[378494755,1754886694364,-400.0,0.00018643,2]
[378494756,1754886694373,-1921.78,0.00018643,2]
[378494757,1754886694383,-857.46,0.00018643,2]
[378494758,1754886694393,-400.0,0.00018643,2]
[378494759,1754886694403,-1592.26,0.00018643,2]
[378494760,1754886694412,-7913.38,0.00018643,2]
[378494761,1754886694422,-879.48,0.00018643,2]
[378494762,1754886694431,-400.0,0.00018643,2]
[378494763,1754886694440,-740.94,0.00018643,2]
[378494764,1754886694450,-1614.05,0.00018643,2]
[378494765,1754886694459,-403.59,0.00018643,2]
[378494766,1754886694469,-565.32,0.00018643,2]
[378494767,1754886694478,-839.55,0.00018643,2]
[378494768,1754886694488,-504.78,0.00018643,2]
[378494769,1754886694498,-2321.56,0.00018643,2]
[378494770,1754886694507,-639.29,0.00018643,2]
[378494771,1754886694517,-1629.58,0.00018643,2]
[378494772,1754886694527,-939.98,0.00018643,2]
[378494773,1754886694536,-1323.73,0.00018643,2]
[378494774,1754886694546,-400.0,0.00018643,2]
[378494775,1754886694555,-1738.72,0.00018643,2]
[378494776,1754886694565,-400.0,0.00018643,2]
[378494777,1754886694576,-400.0,0.00018643,2]
[378494778,1754886694587,-2334.26,0.00018643,2]
[378494779,1754886694598,-474.22432772,0.00018643,2]
[378494780,1754886694607,-2203.02,0.00018643,2]
[378494781,1754886694617,-400.0,0.00018643,2]
[378494782,1754886694626,-866.1,0.00018643,2]
[378494783,1754886694637,-454.63,0.00018643,2]
[378494784,1754886694646,-400.0,0.00018643,2]
[378494785,1754886694656,-590.93,0.00018643,2]
[378494786,1754886694667,-1370.62,0.00018643,2]
[378494787,1754886694677,-428.1,0.00018643,2]
[378494788,1754886694687,-400.0,0.00018643,2]
[378494789,1754886694697,-400.0,0.00018643,2]
[378494790,1754886694707,-400.0,0.00018643,2]
[378494791,1754886694716,-1841.0,0.00018643,2]
[378494792,1754886694726,-792.73,0.00018643,2]
[378494793,1754886694735,-822.77,0.00018643,2]
[378494794,1754886694745,-1944.13,0.00018643,2]
[378494795,1754886694755,-400.0,0.00018643,2]
[378494796,1754886694765,-3548.7,0.00018643,2]
[378494797,1754886694775,-185.55251788,0.00018643,2]
[378494798,1754886694784,-621.88,0.00018643,2]
[378494799,1754886694794,-400.0,0.00018643,2]
[378494800,1754886694803,-808.04,0.00018643,2]
[378494801,1754886694813,-1925.87,0.00018643,2]
[378494802,1754886694822,-1150.74,0.00018643,2]
[378494803,1754886694832,-421.99,0.00018643,2]
[378494804,1754886694841,-1979.32,0.00018643,2]
[378494805,1754886694851,-499.88,0.00018643,2]
[378494806,1754886694860,-436.14,0.00018643,2]
[378494807,1754886694869,-450.76,0.00018643,2]
[378494808,1754886694880,-400.0,0.00018643,2]
[378494809,1754886694890,-848.85,0.00018643,2]
[378494810,1754886694901,-400.0,0.00018643,2]
[378494811,1754886694910,-400.0,0.00018643,2]
[378494812,1754886694919,-4500.31,0.00018643,2]
[378494813,1754886694929,-449.78,0.00018643,2]
[378494814,1754886694939,-400.0,0.00018643,2]
[378494815,1754886694950,-2845.53,0.00018643,2]
[378494816,1754886694960,-1272.95,0.00018643,2]
[378494817,1754886694970,-400.0,0.00018643,2]
[378494818,1754886694980,-2568.52,0.00018643,2]
[378494819,1754886694989,-400.0,0.00018643,2]
[378494820,1754886694999,-5336.15,0.00018643,2]
[378494821,1754886695009,-906.0,0.00018643,2]
[378494822,1754886695018,-817.46,0.00018643,2]
[378494823,1754886695028,-1189.6,0.00018643,2]
[378494824,1754886695037,-400.0,0.00018643,2]
[378494825,1754886695047,-15866.21,0.000187,2]
[378494826,1754886695056,-509.0,0.00018705,5]
[378494827,1754886695066,-1000.0,0.00018729,2]
[378494828,1754886695076,-205.0,0.0001873,2]
[378494829,1754886695085,-150.0,0.00018738,2]
[378494830,1754886695095,-150.0,0.00018742,2]
[378494831,1754886695104,-150.0,0.00018745,2]
[378494832,1754886695114,-150.0,0.0001876,2]
[378494833,1754886695124,-376.0,0.00018763,2]
[378494834,1754886695134,-150.0,0.00018763,2]
[378494835,1754886695144,-150.0,0.00018773,2]
[378494836,1754886695154,-3872.52275531,0.00018785,2]
[378494837,1754886695163,-457.87080987,0.00018791,2]
[378494838,1754886695173,-211.73953792,0.00018791,2]
[378494839,1754886695183,-842.86497659,0.00018791,2]
[378494840,1754886695192,-150.0,0.00018796,2]
[378494841,1754886695202,-150.0,0.00018796,2]
[378494842,1754886695211,-150.0,0.00018797,2]
[378494843,1754886695221,-150.0,0.00018798,2]
[378494844,1754886695231,-160.0,0.00018799,2]
[378494845,1754886695241,-172.05,0.000188,2]
[378494846,1754886695251,-172.05,0.000188,2]
[378494847,1754886695260,-172.05,0.000188,2]
[378494848,1754886695270,-172.05,0.000188,2]
[378494849,1754886695279,-172.05,0.000188,2]
[378494850,1754886695289,-172.05,0.000188,2]
[378494851,1754886695298,-172.05,0.000188,2]
[378494852,1754886695307,-172.05,0.000188,2]
[378494853,1754886695317,-172.05,0.000188,2]
[378494854,1754886695326,-172.05,0.000188,2]
[378494855,1754886695336,-172.05,0.000188,2]
[378494856,1754886695345,-172.05,0.000188,2]
[378494857,1754886695355,-150.0,0.00018803,2]
[378494858,1754886695364,-150.0,0.00018807,2]
[378494859,1754886695373,-150.0,0.00018808,2]
[378494860,1754886695383,-828.55,0.00018813,2]
[378494861,1754886695393,-1186.71,0.00018813,2]
[378494862,1754886695402,-1147.62,0.00018813,2]
[378494863,1754886695412,-1449.09,0.00018813,2]
[378494864,1754886695421,-403.39,0.00018813,2]
[378494865,1754886695430,-479.53,0.00018813,2]
[378494866,1754886695440,-1645.25,0.00018813,2]
[378494867,1754886695450,-400.0,0.00018813,2]
[378494868,1754886695459,-400.0,0.00018813,2]
[378494869,1754886695469,-400.0,0.00018813,2]
[378494870,1754886695478,-150.0,0.00018816,2]
[378494871,1754886695488,-150.0,0.00018821,2]
[378494872,1754886695498,-587.0,0.00018826,2]
[378494873,1754886695507,-204.25,0.00018829,2]
[378494874,1754886695517,-150.0,0.00018831,2]
[378494875,1754886695526,-363.59374199,0.00018832,2]
[378494876,1754886695536,-463.40378881,0.00018833,2]
[378494877,1754886695545,-150.0,0.00018833,2]
[378494878,1754886695555,-563.21383563,0.00018834,2]
[378494879,1754886695564,-663.02388245,0.00018835,2]
[378494880,1754886695574,-150.0,0.00018835,2]
[378494881,1754886695584,-762.83392927,0.00018836,2]
[378494882,1754886695596,-600.0,0.00018836,2]
[378494883,1754886695606,-343.96,0.00018836,2]
[378494884,1754886695615,-376.0,0.00018837,2]
[378494885,1754886695625,-862.64397609,0.00018837,2]
[378494886,1754886695635,-962.45402291,0.00018838,2]
[378494887,1754886695645,-2638.0,0.00018838,2]
[378494888,1754886695654,-1062.26406973,0.00018839,2]
[378494889,1754886695666,-1162.07411656,0.0001884,2]
[378494890,1754886695675,-150.0,0.0001884,2]
[378494891,1754886695684,-150.0,0.00018847,2]
[378494892,1754886695694,-200.0,0.00018848,2]
[378494893,1754886695703,-671.27430589,0.00018849,2]
[378494894,1754886695713,-400.0,0.0001885,2]
[378494895,1754886695723,-400.0,0.0001885,2]
[378494896,1754886695732,-420.74501467,0.0001885,2]
[378494897,1754886695742,-400.0,0.0001885,2]
[378494898,1754886695751,-1124.01,0.0001885,2]
[378494899,1754886695761,-400.0,0.0001885,2]
[378494900,1754886695774,-400.0,0.0001885,2]
[378494901,1754886695784,-400.0,0.0001885,2]
[378494902,1754886695794,-403.34425502,0.0001885,2]
[378494903,1754886695803,-400.0,0.0001885,2]
[378494904,1754886695813,-404.95319057,0.0001885,2]
[378494905,1754886695823,-400.0,0.0001885,2]
[378494906,1754886695833,-402.32722423,0.0001885,2]
[378494907,1754886695842,-400.0,0.0001885,2]
[378494908,1754886695852,-400.0,0.0001885,2]
[378494909,1754886695862,-400.0,0.0001885,2]
[378494910,1754886695872,-400.0,0.0001885,2]
[378494911,1754886695882,-400.0,0.0001885,2]
[378494912,1754886695892,-400.0,0.0001885,2]
[378494913,1754886695902,-500.0,0.0001885,2]
[378494914,1754886695912,-408.21,0.0001885,2]
[378494915,1754886695921,-619.05,0.0001885,2]
[378494916,1754886695931,-400.0,0.0001885,2]
[378494917,1754886695941,-564.79,0.0001885,2]
[378494918,1754886695951,-287.27723351,0.0001885,2]
[378494919,1754886695961,-461.53390379,0.0001885,2]
[378494920,1754886695971,-400.0,0.0001885,2]
[378494921,1754886695980,-199.99684908,0.0001885,2]
[378494922,1754886695990,-400.0,0.0001885,2]
[378494923,1754886695999,-400.0,0.0001885,2]
[378494924,1754886696009,-400.0,0.0001885,2]
[378494925,1754886696019,-404.76193672,0.0001885,2]
[378494926,1754886696028,-404.29844528,0.0001885,2]
[378494927,1754886696038,-400.0,0.0001885,2]
[378494928,1754886696047,-400.0,0.0001885,2]
[378494929,1754886696057,-400.0,0.0001885,2]
[378494930,1754886696066,-402.29780325,0.0001885,2]
[378494931,1754886696076,-402.71317432,0.0001885,2]
[378494932,1754886696085,-400.0,0.0001885,2]
[378494933,1754886696095,-400.0,0.0001885,2]
[378494934,1754886696104,-400.0,0.0001885,2]
[378494935,1754886696113,-400.0,0.0001885,2]
[378494936,1754886696123,-558.92,0.0001885,2]
[378494937,1754886696133,-407.88929098,0.0001885,2]
[378494938,1754886696142,-404.08206544,0.0001885,2]
[378494939,1754886696152,-400.89376079,0.0001885,2]
[378494940,1754886696162,-411.34284282,0.0001885,2]
[378494941,1754886696171,-400.0,0.0001885,2]
[378494942,1754886696182,-692.24,0.0001885,2]
[378494943,1754886696192,-404.0056688,0.0001885,2]
[378494944,1754886696202,-403.47316041,0.0001885,2]
[378494945,1754886696212,-403.5953782,0.0001885,2]
[378494946,1754886696222,-400.0,0.0001885,2]
[378494947,1754886696231,-400.0,0.0001885,2]
[378494948,1754886696241,-312.27057119,0.0001885,2]
[378494949,1754886696251,-546.24806359,0.0001885,2]
[378494950,1754886696261,-401.32392185,0.0001885,2]
[378494951,1754886696274,-403.99459389,0.0001885,2]
[378494952,1754886696283,-400.0,0.0001885,2]
[378494953,1754886696293,-672.47,0.0001885,2]
[378494954,1754886696302,-400.0,0.0001885,2]
[378494955,1754886696312,-401.23324527,0.0001885,2]
[378494956,1754886696323,-403.00400753,0.0001885,2]
[378494957,1754886696333,-577.44,0.0001885,2]
[378494958,1754886696343,-401.61666343,0.0001885,2]
[378494959,1754886696353,-400.0,0.0001885,2]
[378494960,1754886696362,-400.0,0.0001885,2]
[378494961,1754886696372,-400.0,0.0001885,2]
[378494962,1754886696381,-400.0,0.0001885,2]
[378494963,1754886696391,-400.0,0.0001885,2]
[378494964,1754886696400,-549.83,0.0001885,2]
[378494965,1754886696409,-400.0,0.0001885,2]
[378494966,1754886696418,-400.0,0.0001885,2]
[378494967,1754886696428,-466.75,0.0001885,2]
[378494968,1754886696437,-402.06751752,0.0001885,2]
[378494969,1754886696446,-400.60539376,0.0001885,2]
[378494970,1754886696456,-400.0,0.0001885,2]
[378494971,1754886696465,-401.90878714,0.0001885,2]
[378494972,1754886696474,-400.52652433,0.0001885,2]
[378494973,1754886696483,-400.0,0.0001885,2]
[378494974,1754886696493,-702.64,0.0001885,2]
[378494975,1754886696502,-400.40211521,0.0001885,2]
[378494976,1754886696511,-403.08668824,0.0001885,2]
[378494977,1754886696521,-403.63824461,0.0001885,2]
[378494978,1754886696530,-400.0,0.0001885,2]
[378494979,1754886696647,-400.0,0.0001885,2]
[378494980,1754886696656,-1069.9,0.0001885,2]
[378494981,1754886696666,-400.0,0.0001885,2]
[378494982,1754886696676,-267.10997757,0.0001885,2]
[378494983,1754886696685,-403.38570637,0.0001885,2]
[378494984,1754886696695,-400.0,0.0001885,2]
[378494985,1754886696705,-400.0,0.0001885,2]
[378494986,1754886696714,-400.0,0.0001885,2]
[378494987,1754886696724,-400.0,0.0001885,2]
[378494988,1754886696733,-400.0,0.0001885,2]
[378494989,1754886696743,-574.45,0.0001885,2]
[378494990,1754886696752,-400.0,0.0001885,2]
[378494991,1754886696761,-400.0,0.0001885,2]
[378494992,1754886696770,-412.45671763,0.0001885,2]
[378494993,1754886696780,-400.0,0.0001885,2]
[378494994,1754886696789,-424.62,0.0001885,2]
[378494995,1754886696798,-403.01065361,0.0001885,2]
[378494996,1754886696808,-400.0,0.0001885,2]
[378494997,1754886696818,-404.92327357,0.0001885,2]
[378494998,1754886696827,-400.0,0.0001885,2]
[378494999,1754886696836,-400.0,0.0001885,2]
[378495000,1754886696845,-403.34459625,0.0001885,2]
[378495001,1754886696855,-401.41710087,0.0001885,2]
[378495002,1754886696864,-780.42,0.0001885,2]
[378495003,1754886696874,-400.0,0.0001885,2]
[378495004,1754886696883,-400.0,0.0001885,2]
[378495005,1754886696892,-397.49574669,0.0001885,2]
[378495006,1754886696902,-400.0,0.0001885,2]
[378495007,1754886696912,-400.0,0.0001885,2]
[378495008,1754886696922,-400.0,0.0001885,2]
[378495009,1754886696931,-400.0,0.0001885,2]
[378495010,1754886696941,-400.0,0.0001885,2]
[378495011,1754886696952,-400.0,0.0001885,2]
[378495012,1754886696966,-400.0,0.0001885,2]
[378495013,1754886696983,-400.0,0.0001885,2]
[378495014,1754886696993,-400.0,0.0001885,2]
[378495015,1754886697002,-578.99,0.0001885,2]
[378495016,1754886697011,-400.0,0.0001885,2]
[378495017,1754886697021,-400.0,0.0001885,2]
[378495018,1754886697031,-550.62,0.0001885,2]
[378495019,1754886697040,-400.0,0.0001885,2]
[378495020,1754886697050,-300.0,0.0001885,2]
[378495021,1754886697059,-400.0,0.0001885,2]
[378495022,1754886697069,-400.0,0.0001885,2]
[378495023,1754886697078,-400.0,0.0001885,2]
[378495024,1754886697087,-838.8,0.0001885,2]
[378495025,1754886697097,-515.23,0.0001885,2]
[378495026,1754886697106,-447.36,0.0001885,2]
[378495027,1754886697115,-400.0,0.0001885,2]
[378495028,1754886697126,-400.0,0.0001885,2]
[378495029,1754886697135,-400.0,0.0001885,2]
[378495030,1754886697144,-402.06840884,0.0001885,2]
[378495031,1754886697154,-400.0,0.0001885,2]
[378495032,1754886697164,-562.43,0.0001885,2]
[378495033,1754886697174,-400.0,0.0001885,2]
[378495034,1754886697183,-402.10463853,0.0001885,2]
[378495035,1754886697192,-400.0,0.0001885,2]
[378495036,1754886697202,-400.0,0.0001885,2]
[378495037,1754886697212,-1014.0,0.0001885,2]
[378495038,1754886697221,-476.62,0.0001885,2]
[378495039,1754886697231,-400.0,0.0001885,2]
[378495040,1754886697240,-400.0,0.0001885,2]
[378495041,1754886697249,-400.0,0.0001885,2]
[378495042,1754886697259,-786.55,0.0001885,2]
[378495043,1754886697268,-1406.87,0.0001885,2]
[378495044,1754886697278,-791.55,0.0001885,2]
[378495045,1754886697287,-611.68140479,0.0001885,2]
[378495046,1754886697296,-400.0,0.0001885,2]
[378495047,1754886697305,-400.0,0.0001885,2]
[378495048,1754886697315,-400.0,0.0001885,2]
[378495049,1754886697324,-737.44,0.0001885,2]
[378495050,1754886697334,-400.0,0.0001885,2]
[378495051,1754886697343,-400.0,0.0001885,2]
[378495052,1754886697352,-400.0,0.0001885,2]
[378495053,1754886697362,-832.29,0.0001885,2]
[378495054,1754886697371,-400.0,0.0001885,2]
[378495055,1754886697380,-400.0,0.0001885,2]
[378495056,1754886697389,-409.51657173,0.0001885,2]
[378495057,1754886697398,-400.0,0.0001885,2]
[378495058,1754886697407,-400.0,0.0001885,2]
[378495059,1754886697417,-400.0,0.0001885,2]
[378495060,1754886697426,-713.83,0.0001885,2]
[378495061,1754886697435,-400.0,0.0001885,2]
[378495062,1754886697444,-1216.91,0.0001885,2]
[378495063,1754886697454,-974.97,0.0001885,2]
[378495064,1754886697463,-400.0,0.0001885,2]
[378495065,1754886697473,-400.0,0.0001885,2]
[378495066,1754886697482,-289.14192334,0.0001885,2]
[378495067,1754886697491,-400.0,0.0001885,2]
[378495068,1754886697501,-772.41,0.0001885,2]
[378495069,1754886697510,-400.0,0.0001885,2]
[378495070,1754886697520,-1542.12,0.0001885,2]
[378495071,1754886697529,-400.0,0.0001885,2]
[378495072,1754886697538,-400.0,0.0001885,2]
[378495073,1754886697547,-400.0,0.0001885,2]
[378495074,1754886697556,-417.37,0.0001885,2]
[378495075,1754886697566,-546.32,0.0001885,2]
[378495076,1754886697575,-402.08911025,0.0001885,2]
[378495077,1754886697584,-400.0,0.0001885,2]
[378495078,1754886697599,-400.0,0.0001885,2]
[378495079,1754886697608,-400.0,0.0001885,2]
[378495080,1754886697618,-400.0,0.0001885,2]
[378495081,1754886697627,-908.68,0.0001885,2]
[378495082,1754886697638,-400.0,0.0001885,2]
[378495083,1754886697648,-2215.64,0.0001885,2]
[378495084,1754886697662,-400.0,0.0001885,2]
[378495085,1754886697672,-400.0,0.0001885,2]
[378495086,1754886697681,-400.0,0.0001885,2]
[378495087,1754886697690,-400.0,0.0001885,2]
[378495088,1754886697699,-400.0,0.0001885,2]
[378495089,1754886697708,-400.0,0.0001885,2]
[378495090,1754886697718,-400.0,0.0001885,2]
[378495091,1754886697727,-827.58,0.0001885,2]
[378495092,1754886697737,-400.0,0.0001885,2]
[378495093,1754886697753,-403.28,0.0001885,2]
[378495094,1754886697764,-419.42781582,0.0001885,2]
[378495095,1754886697773,-400.0,0.0001885,2]
[378495096,1754886697783,-400.0,0.0001885,2]
[378495097,1754886697792,-400.0,0.0001885,2]
[378495098,1754886697801,-411.54,0.0001885,2]
[378495099,1754886697810,-400.0,0.0001885,2]
[378495100,1754886697820,-407.71333033,0.0001885,2]
[378495101,1754886697829,-400.0,0.0001885,2]
[378495102,1754886697838,-400.0,0.0001885,2]
[378495103,1754886697847,-409.88998908,0.0001885,2]
[378495104,1754886697857,-400.0,0.0001885,2]
[378495105,1754886697866,-151.0,0.0001885,2]
[378495106,1754886697875,-400.0,0.0001885,2]
[378495107,1754886697885,-963.53,0.0001885,2]
[378495108,1754886697894,-400.0,0.0001885,2]
[378495109,1754886697903,-500.0,0.0001885,2]
[378495110,1754886697915,-400.0,0.0001885,2]
[378495111,1754886697924,-1202.08,0.0001885,2]
[378495112,1754886697933,-400.0,0.0001885,2]
[378495113,1754886697942,-400.0,0.0001885,2]
[378495114,1754886697952,-400.0,0.0001885,2]
[378495115,1754886697962,-400.0,0.0001885,2]
[378495116,1754886697971,-5836.37,0.0001885,2]
[378495117,1754886697980,-400.0,0.0001885,2]
[378495118,1754886697989,-400.0,0.0001885,2]
[378495119,1754886697999,-961.54,0.0001885,2]
[378495120,1754886698009,-460.0,0.0001885,2]
[378495121,1754886698018,-400.0,0.0001885,2]
[378495122,1754886698027,-404.38017541,0.0001885,2]
[378495123,1754886698036,-400.0,0.0001885,2]
[378495124,1754886698046,-400.0,0.0001885,2]
[378495125,1754886698055,-400.0,0.0001885,2]
[378495126,1754886698064,-400.0,0.0001885,2]
[378495127,1754886698074,-551.93,0.0001885,2]
[378495128,1754886698083,-869.4,0.0001885,2]
[378495129,1754886698093,-1859.85,0.0001885,2]
[378495130,1754886698102,-400.0,0.0001885,2]
[378495131,1754886698111,-411.15823919,0.0001885,2]
[378495132,1754886698121,-1262.9,0.0001885,2]
[378495133,1754886698130,-2190.7,0.0001885,2]
[378495134,1754886698140,-400.0,0.0001885,2]
[378495135,1754886698150,-402.75981011,0.0001885,2]
[378495136,1754886698159,-646.97,0.0001885,2]
[378495137,1754886698168,-1710.99,0.0001885,2]
[378495138,1754886698178,-619.93,0.0001885,2]
[378495139,1754886698187,-400.0,0.0001885,2]
[378495140,1754886698196,-400.0,0.0001885,2]
[378495141,1754886698206,-400.0,0.0001885,2]
[378495142,1754886698215,-687.24,0.0001885,2]
[378495143,1754886698224,-400.0,0.0001885,2]
[378495144,1754886698234,-401.51942323,0.0001885,2]
[378495145,1754886698243,-2044.6,0.0001885,2]
[378495146,1754886698253,-452.51,0.0001885,2]
[378495147,1754886698262,-407.79021553,0.0001885,2]
[378495148,1754886698271,-400.0,0.0001885,2]
[378495149,1754886698280,-400.0,0.0001885,2]
[378495150,1754886698289,-400.0,0.0001885,2]
[378495151,1754886698299,-400.0,0.0001885,2]
[378495152,1754886698309,-454.82,0.0001885,2]
[378495153,1754886698318,-400.0,0.0001885,2]
[378495154,1754886698327,-400.0,0.0001885,2]
[378495155,1754886698337,-400.0,0.0001885,2]
[378495156,1754886698346,-400.58095055,0.0001885,2]
[378495157,1754886698355,-400.0,0.0001885,2]
[378495158,1754886698364,-403.80621024,0.0001885,2]
[378495159,1754886698374,-400.0,0.0001885,2]
[378495160,1754886698383,-400.0,0.0001885,2]
[378495161,1754886698392,-823.84,0.0001885,2]
[378495162,1754886698402,-400.0,0.0001885,2]
[378495163,1754886698411,-1177.93,0.0001885,2]
[378495164,1754886698420,-400.0,0.0001885,2]
[378495165,1754886698430,-400.0,0.0001885,2]
[378495166,1754886698439,-574.25,0.0001885,2]
[378495167,1754886698449,-508.76245934,0.0001885,2]
[378495168,1754886698458,-400.0,0.0001885,2]
[378495169,1754886698467,-400.0,0.0001885,2]
[378495170,1754886698477,-400.0,0.0001885,2]
[378495171,1754886698486,-540.04,0.0001885,2]
[378495172,1754886698495,-400.0,0.0001885,2]
[378495173,1754886698503,-400.0,0.0001885,2]
[378495174,1754886698513,-1221.24,0.0001885,2]
[378495175,1754886698522,-400.0,0.0001885,2]
[378495176,1754886698531,-401.17749732,0.0001885,2]
[378495177,1754886698540,-405.12159122,0.0001885,2]
[378495178,1754886698549,-645.83,0.0001885,2]
[378495179,1754886698558,-400.0,0.0001885,2]
[378495180,1754886698567,-400.0,0.0001885,2]
[378495181,1754886698576,-1113.6,0.0001885,2]
[378495182,1754886698586,-400.0,0.0001885,2]
[378495183,1754886698598,-520.0,0.0001885,2]
[378495184,1754886698607,-400.0,0.0001885,2]
[378495185,1754886698616,-403.70961753,0.0001885,2]
[378495186,1754886698625,-400.0,0.0001885,2]
[378495187,1754886698634,-576.22,0.0001885,2]
[378495188,1754886698643,-934.12,0.0001885,2]
[378495189,1754886698652,-1290.82,0.0001885,2]
[378495190,1754886698661,-400.0,0.0001885,2]
[378495191,1754886698672,-400.0,0.0001885,2]
[378495192,1754886698682,-961.66,0.0001885,2]
[378495193,1754886698692,-400.0,0.0001885,2]